Cogmind - Beta 17.1 @@@ ROGUE MODE // 2026.09.15 @ 19:13:34 Player: Ethranok Result: Destroyed by G-47 Trooper with Particle Gun Performance ------------- Evolutions (3) 1500 Regions Visited (9) 1800 Robots Destroyed (235) 1175 Value Destroyed (7608) 7608 Prototype IDs (31) 620 Alien Tech Used (0) 0 Bonus (1032) 1032 TOTAL SCORE: 13735 Bonus ------- High Alert Combat Kills 597 Follower Combat Kills 135 Aligned with FarCom 300 Cogmind --------- Core Integrity 0/700 Matter 242/300 Energy 295/300 System Corruption 8% Temperature Cool (9) Movement Treading (250) Ox1 Location -7/Storage Parts ------- > --- POWER (1) -------- Enhanced Nuclear Core > --- PROPULSION (4) --- Armored Treads Armored Treads Armored Treads > --- UTILITY (6) ------ Huge Storage Unit Improved Signal Interpreter Medium Reactive Plating Hacking Suite Hacking Suite System Shield > --- WEAPON (2) ------- Minigun Advanced Assault Cannon > --- INVENTORY (25) --- Heavy Deuterium Engine Enhanced Nuclear Core Micro Nuclear Core Light Treads Light Treads Advanced Energy Well (500) Trap Scanner Improved Signal Interpreter Advanced Targeting Computer Transmission Jammer Advanced ECM Suite Medium Reactive Plating Hardlight Generator Hacking Suite Minigun Enhanced Autogun Advanced Assault Cannon Gauss Cannon Rocket Array Rocket Array Great Maul Peak State ------------ > --- POWER ------------ Micro Nuclear Core > --- PROPULSION ------- Advanced Treads Medium Treads Medium Treads Medium Treads > --- UTILITY ---------- Huge Storage Unit Improved Signal Interpreter Hacking Suite Hacking Suite System Shield System Restoration Module > --- WEAPON ----------- Advanced Assault Cannon Rocket Array > --- INVENTORY -------- Micro Nuclear Core Micro Nuclear Core Improved Treads Improved Treads Large Matter Pod Trap Scanner Improved Signal Interpreter Advanced ECM Suite Improved Medium Armor Plating Medium Reactive Plating Medium Reactive Plating Medium Reactive Plating Insulated Plating Hardlight Generator Hardlight Generator Minigun Minigun Enhanced Autogun Advanced Assault Cannon Advanced Assault Cannon Advanced Assault Cannon Advanced Assault Cannon Gauss Cannon Rocket Array Heavy Mace [Rating: 53] Favorites ----------- Power Heavy Ion Engine Engine Heavy Ion Engine Power Core Micro Nuclear Core Propulsion Improved Treads Treads Improved Treads Utility Hacking Suite Device System Restoration Module Storage Huge Storage Unit Processor Improved Signal Interpreter Hackware Hacking Suite Protection Light Armor Plating Weapon Improved Light Cannon Ballistic Gun Enhanced Autogun Ballistic Cannon Improved Light Cannon Launcher Missile Launcher Special Weapon Plasma Cutter Impact Weapon Heavy Mace Build | -11 -10 -10 -9 -9 -9 -8 -8 -7 -7 ------- Run | Yrd Mat Min Mat Min Exi Min Mat Fac Sto Slots Evolved 6 | . . . 2 . . . 2 2 . Power . | . . . . . . . . . . Propulsion 2 | . . . . . . . 1 1 . Utility 4 | . . . 2 . . . 1 1 . Weapon . | . . . . . . . . . . Parts Attached 96 | 6 8 1 13 . . . 25 36 7 Power 10 | 1 2 . 1 . . . 1 3 2 Engine 6 | 1 2 . 1 . . . 1 . 1 Core 4 | . . . . . . . . 3 1 Reactor . | . . . . . . . . . . Propulsion 24 | 2 1 . 3 . . . 6 9 3 Treads 24 | 2 1 . 3 . . . 6 9 3 Leg . | . . . . . . . . . . Wheel . | . . . . . . . . . . Hover . | . . . . . . . . . . Flight . | . . . . . . . . . . Utility 28 | 1 2 . 2 . . . 11 10 2 Device 9 | . . . . . . . 4 4 1 Storage 3 | 1 2 . . . . . . . . Processor 4 | . . . 1 . . . 3 . . Hackware 5 | . . . . . . . 2 3 . Protection 7 | . . . 1 . . . 2 3 1 Artifact . | . . . . . . . . . . Weapon 34 | 2 3 1 7 . . . 7 14 . Energy Gun . | . . . . . . . . . . Energy Cannon . | . . . . . . . . . . Ballistic Gun 11 | 2 . . 2 . . . 3 4 . Ballistic Cannon 14 | . 3 1 1 . . . 2 7 . Launcher 5 | . . . 2 . . . 1 2 . Special Weapon 1 | . . . 1 . . . . . . Impact Weapon 3 | . . . 1 . . . 1 1 . Slashing Weapon . | . . . . . . . . . . Piercing Weapon . | . . . . . . . . . . Special Melee Weapon . | . . . . . . . . . . Unidentified Prototypes 7 | . 1 . . . . . 3 1 2 Parts Lost 41 | . . . 4 . . . 8 26 3 Power 3 | . . . . . . . 1 2 . Propulsion 17 | . . . 1 . . . 4 11 1 Utility 12 | . . . 1 . . . 3 7 1 Weapon 9 | . . . 2 . . . . 6 1 Highest Loss Streak 7 | . . . 3 . . . 4 7 1 To Critical Strikes . | . . . . . . . . . . Average Backups 18 | 1 8 14 14 13 13 13 19 23 21 Power 1 | . 1 2 1 1 1 1 1 2 1 Propulsion 1 | . . 1 1 2 2 2 . . 1 Utility 7 | . 2 4 3 5 5 5 7 10 10 Weapon 8 | . 3 6 6 5 5 5 9 10 7 Tool/Special . | . . . . . . . . . . Unused Backups 34 | . 5 . 7 . . . 6 5 11 Power 8 | . 3 . . . . . 1 2 2 Propulsion 3 | . . . 2 . . . . . 1 Utility 12 | . . . 1 . . . 1 3 7 Weapon 11 | . 2 . 4 . . . 4 . 1 Tool/Special . | . . . . . . . . . . Average Slot Usage (%) 90 | . 84 85 84 77 77 77 93 95 96 Engine 6 | . 13 14 11 11 11 11 9 1 . Core 2 | . . . . . . . . 5 6 Treads 25 | . 28 28 21 22 22 22 23 26 27 Device 3 | . . . . . . . 3 6 . Storage 9 | . 14 14 11 11 11 11 9 7 7 Processor 7 | . . . 10 11 11 11 9 7 7 Hackware 11 | . . . . . . . 17 18 23 Protection 3 | . . . 8 . . . 3 3 6 Ballistic Gun 5 | . 6 . 7 11 11 11 7 2 6 Ballistic Cannon 10 | . 21 28 14 11 11 11 7 7 2 Impact Weapon 2 | . . . . . . . 2 3 5 Peak Build Rating 53 | 6 12 12 18 15 15 15 34 53 48 Average Rating 30 | 4 9 12 16 15 15 15 28 45 44 On Entrance 16 | . 6 12 12 15 15 15 15 34 37 Avg Prop Armor Cover (%) . | . . . . . . . . . . Naked Turns . | . . . . . . . . . . Heaviest Build 122 | 12 36 36 43 35 35 35 115 122 117 Greatest Support 107 | 40 40 40 46 46 46 46 66 107 80 Greatest Overweight (x) 5 | . . . 1 . . . 5 5 2 Average Overweight (x) . | . . . . . . . . . 1 Largest Inventory Capacity 25 | 8 25 15 15 15 15 15 25 25 25 Average Capacity 20 | 7 11 15 15 15 15 15 20 25 25 Most Carried 25 | 5 15 15 15 13 13 13 25 25 24 Average Carried 18 | 1 8 14 14 13 13 13 19 23 21 Final Capacity 25 | 8 15 15 15 15 15 15 25 25 25 Final Carried 25 | 1 15 15 13 13 13 13 25 20 21 Class Distribution -------------------- 59% | Hacker-Mutant 38% | Mutant Dominant Class ---------------- Mutant | -10/Materials Mutant | -10/Mines Mutant | -9/Materials Mutant | -9/Mines Mutant | -9/Exiles Mutant | -8/Mines Hacker-Mutant | -8/Materials Hacker-Mutant | -7/Factory Hacker-Mutant | -7/Storage Resources | -11 -10 -10 -9 -9 -9 -8 -8 -7 -7 ----------- Run | Yrd Mat Min Mat Min Exi Min Mat Fac Sto Matter Collected 6461 | 241 416 249 1161 35 . 40 1286 2670 363 Remotely . | . . . . . . . . . . Salvage Created 6855 | . 506 109 1555 60 . 17 1330 2648 630 Parts 387 | . 36 5 98 4 . 1 71 145 27 Haulers Intercepted 11 | . 2 . 3 . . . 1 4 1 Recyclers Shooed 6 | . . . 1 . . . . 4 1 Parts Field Recycled . | . . . . . . . . . . Retrieved Matter . | . . . . . . . . . . Parts Self-Destructed . | . . . . . . . . . . Prevented . | . . . . . . . . . . Parts Restored . | . . . . . . . . . . Kills | -11 -10 -10 -9 -9 -9 -8 -8 -7 -7 ------- Run | Yrd Mat Min Mat Min Exi Min Mat Fac Sto Combat Hostiles Destroyed 163 | . 17 2 40 2 . 1 27 61 13 Melee 11 | . . . . . . . . 8 3 Guns 35 | . 4 . 10 1 . 1 7 9 3 Cannons 83 | . 13 2 26 1 . . 10 28 3 AOE 25 | . . . 4 . . . 10 11 . Classes Destroyed 15 | . 6 1 4 . . 1 1 2 . Worker 13 | . 1 . 2 . . 1 . 9 . Builder 11 | . . . . . . . 4 7 . Tunneler 4 | . . 2 . . . . 1 1 . Hauler 11 | . 2 . 3 . . . 1 4 1 Recycler 10 | . . . 1 . . . 5 4 . Mechanic 1 | . . . . . . . . 1 . Operator 6 | . 2 . 2 . . . 2 . . Watcher 16 | . 3 . 4 . . . 3 6 . Swarmer 26 | . 6 . 4 . . . 4 12 . Grunt 88 | . 11 2 26 2 . . 15 28 4 Brawler 3 | . . . 1 . . . . 2 . Duelist 5 | . . . 1 . . . . 3 1 Sentry 23 | . . . 8 . . . 7 4 4 Hunter 7 | . . . . . . 1 1 4 1 Programmer 11 | . . . . . . . . 8 3 Best Kill Streak 9 | . 6 2 7 2 . 1 7 9 3 Combat Bots Only 7 | . 6 2 5 2 . 1 7 6 2 Max Kills in Single Turn 4 | . 1 2 4 1 . 1 4 4 1 Gunslinging . | . . . . . . . . . . Exploded 3 | . . . 3 . . . 2 3 . Melee 1 | . . . . . . . . 1 1 Uniques/NPCs Destroyed . | . . . . . . . . . . Combat | -11 -10 -10 -9 -9 -9 -8 -8 -7 -7 -------- Run | Yrd Mat Min Mat Min Exi Min Mat Fac Sto Hostile Shots Fired 1091 | . 64 5 122 9 . 14 155 554 168 Missed 360 | . 20 1 40 2 . 4 58 167 68 Hits 731 | . 44 4 82 7 . 10 97 387 100 Melee 13 | . . . 2 . . . . 9 2 Projectile 718 | . 44 4 80 7 . 10 97 378 98 AOE 2 | . . . . . . 1 . 1 . Critical Strikes 24 | . 2 . 3 . . . 4 12 3 Damage Taken 10353 | . 462 53 1138 88 . 215 1765 5302 1330 Core 1290 | . 68 . 106 17 . 92 303 556 148 Absorbed by Shields 4 | . . . . . . . . 4 . Ignored by Resistances 161 | . . . . . . . 15 146 . Regen/Repaired (Parts) 1144 | . . . 171 . . . . 973 . Core Remaining (%) 65 | 100 . 72 . . . 46 44 . . Volleys Fired 493 | . 53 5 121 5 . 8 80 189 32 Largest 2 | . 2 2 2 2 . 2 2 2 2 Hottest 90 | . 66 66 72 56 . 56 72 90 65 Shots Fired 904 | . 106 10 230 10 . 17 144 332 55 Gun 323 | . 33 . 66 5 . 8 59 116 36 Cannon 554 | . 73 10 156 5 . 9 74 208 19 Launcher 23 | . . . 4 . . . 11 8 . Special 4 | . . . 4 . . . . . . Kinetic 877 | . 106 10 222 10 . 17 133 324 55 Thermal 4 | . . . 4 . . . . . . Explosive 23 | . . . 4 . . . 11 8 . Electromagnetic . | . . . . . . . . . . Robot Hit Streak 17 | . 17 5 16 14 . 2 9 13 11 Robot Miss Streak 6 | . 4 1 3 . . 2 3 6 2 Penetration Max . | . . . . . . . . . . Secondary Targets . | . . . . . . . . . . Shots Hit Robots 659 | . 67 7 152 9 . 6 99 263 56 Core Hits 347 | . 29 5 59 3 . 3 65 165 18 Critical Kills 2 | . . . . . . . . 1 1 Critical Parts Destroyed 16 | . . . . . . . 3 9 4 Critical Strikes 37 | . 1 . 4 . . . 6 20 6 Destroy 4 | . . . . . . . 2 1 1 Blast 19 | . 1 . 4 . . . 3 10 1 Smash 14 | . . . . . . . 1 9 4 Melee Attacks 165 | . . . 1 . . . 26 86 52 Impact 165 | . . . 1 . . . 26 86 52 Slashing . | . . . . . . . . . . Piercing . | . . . . . . . . . . Sneak Attacks 22 | . . . . . . . 7 14 1 Combat Hostiles 2 | . . . . . . . . 2 . Follow-up Attacks . | . . . . . . . . . . Damage Inflicted 19728 | . 1119 172 3456 171 . 95 3804 9232 1679 Guns 3215 | . 159 . 816 83 . 26 595 1083 453 Cannons 8639 | . 960 172 2224 88 . 62 1044 3651 438 Explosions 3939 | . . . 413 . . . 1422 2104 . Melee 3767 | . . . . . . . 713 2280 774 Ramming 168 | . . . 3 . . 7 30 114 14 Kinetic 11854 | . 1119 172 3040 171 . 88 1639 4734 891 Thermal 100 | . . . . . . . . 100 . Explosive 3710 | . . . 413 . . . 1422 1875 . Electromagnetic 129 | . . . . . . . . 129 . Impact 3767 | . . . . . . . 713 2280 774 Slashing . | . . . . . . . . . . Piercing . | . . . . . . . . . . Highest Corruption 11 | . 4 4 2 2 2 2 11 2 8 Average Corruption 3 | . 3 4 1 2 2 2 6 1 2 Corruption Purged 13 | . . . . . . . 7 5 1 Corruption Blocked . | . . . . . . . . . . Effects 140 | . 6 17 16 2 10 8 60 3 18 Message Errors 39 | . 1 5 5 1 2 . 19 1 5 Matter Fused 28 | . 4 5 2 . 3 2 10 . 2 Heat Flow Errors 17 | . . 2 . . 3 1 8 1 2 Energy Discharges 13 | . 1 1 1 1 . . 6 . 3 Parts Rejected 1 | . . 1 . . . . . . . Parts Fused 3 | . . 1 1 . . . 1 . . Data Loss (minor) 17 | . . 2 3 . 2 2 4 1 3 Data Loss (major) 8 | . . . 2 . . 2 3 . 1 Misfires 5 | . . . 1 . . 1 2 . 1 Alerts 6 | . . . 1 . . . 4 . 1 Weapon Failures 3 | . . . . . . . 3 . . Overload Shots . | . . . . . . . . . . Overflow Damage 1739 | . . . 72 . . . 353 1079 235 Projectiles 158 | . . . 27 . . . 37 77 17 Explosions 198 | . . . 45 . . . 10 143 . Melee 1383 | . . . . . . . 306 859 218 Knockbacks 121 | . 12 1 19 2 . 2 16 61 8 Impact 18 | . . . . . . . 4 11 3 Kinetic 99 | . 12 1 19 2 . 2 12 46 5 Secondary 4 | . . . . . . . . 4 . Self-Inflicted Damage 279 | . . . 77 . . . 55 147 . Shots 7 | . . . 1 . . . 1 5 . Rammed 26 | . . . 3 . . 2 4 15 2 Targets Rammed 29 | . . . 3 . . 3 4 17 2 Kicked . | . . . . . . . . . . Crushed 3 | . . . . . . 1 . 2 . Highest Temperature 296 | . 69 268 97 19 199 235 296 165 122 Average Temperature 40 | . 18 95 28 9 80 120 59 35 33 Received Heat Transfer 2812 | . 210 33 474 51 . 12 441 1351 240 Siege Activations . | . . . . . . . . . . Martial Activations . | . . . . . . . . . . Shielding Activations . | . . . . . . . . . . Robots Disrupted . | . . . . . . . . . . Combat Hostiles . | . . . . . . . . . . Robots Corrupted 18 | . . . . . . . 5 9 4 Combat Hostiles 9 | . . . . . . . . 5 4 Parts Fried 22 | . . . . . . . 7 8 7 Impact Corruptions 54 | . . . . . . . 14 29 11 Robots Melted . | . . . . . . . . . . Combat Hostiles . | . . . . . . . . . . Parts Melted . | . . . . . . . . . . Heat Transferred 50 | . . . . . . . . 50 . Parts Sabotaged . | . . . . . . . . . . Parts Stolen . | . . . . . . . . . . Parts Stripped . | . . . . . . . . . . Power Chain Reactions . | . . . . . . . . . . Alert | -11 -10 -10 -9 -9 -9 -8 -8 -7 -7 ------- Run | Yrd Mat Min Mat Min Exi Min Mat Fac Sto Maximum Alert Level 3 | . 1 . 3 1 . . 2 3 2 Low Security (%) 59 | 100 98 100 57 . . 100 68 51 . Level 1 21 | . 1 . 11 100 . . 25 25 49 Level 2 10 | . . . 17 . . . 6 7 50 Level 3 8 | . . . 13 . . . . 16 . Level 4 . | . . . . . . . . . . Level 5 . | . . . . . . . . . . High Security . | . . . . . . . . . . Max Security . | . . . . . . . . . . Peak Influence 1056 | . 208 64 727 321 . 30 433 1056 485 Initial 480 | . . 48 . 271 . . . 194 480 Average 247 | . 109 12 299 273 . 1 183 318 400 Influence Increases 5856 | . 548 82 1428 50 . 51 1075 2156 466 Destroy 0b10 Robot/C 3360 | . 340 40 900 40 . 20 540 1220 260 Destroy 0b10 Robot/NC 365 | . 40 10 65 . . 5 80 160 5 Destroy Leader 886 | . 80 10 236 10 . 10 148 300 92 Allied During Kill 26 | . . 6 20 . . . . . . Successful Hack 193 | . 25 . 29 . . . 17 100 22 Disable Machine 405 | . 30 15 60 . . 15 105 150 30 Destroy Structure 396 | . 3 1 73 . . 1 140 166 12 Partial Spotted 15 | . . . . . . . 15 . . Lose Combat Pursuer 210 | . 30 . 45 . . . 30 60 45 Influence Decreases 5434 | . 422 206 732 517 231 51 646 1529 1100 Entered New Map 1549 | . . 78 2 427 231 . . 235 576 Time Decay 3158 | . 422 128 650 90 . 51 566 757 494 Lost Part 387 | . . . 40 . . . 80 237 30 Lost Ally 40 | . . . 40 . . . . . . Purge Threat 300 | . . . . . . . . 300 . Squads Dispatched 52 | . 4 1 11 . . . 4 27 5 Investigation 23 | . 4 1 9 . . . 2 7 . Extermination 11 | . . . . . . . . 9 2 Reinforcement 11 | . . . 1 . . . 2 6 2 Assault 4 | . . . 1 . . . . 2 1 Garrison 3 | . . . . . . . . 3 . Intercept . | . . . . . . . . . . Searches Triggered . | . . . . . . . . . . Construction Impeded 3 | . . . . . . . . 3 . Haulers Reinforced 2 | . . . . . . . . 1 1 Active Scanning Responses . | . . . . . . . . . . Cargo Convoy Interrupts . | . . . . . . . . . . Stealth | -11 -10 -10 -9 -9 -9 -8 -8 -7 -7 --------- Run | Yrd Mat Min Mat Min Exi Min Mat Fac Sto Distress Signals 7 | . 2 . . . . . 3 1 1 Communications Jammed . | . . . . . . . . . . Distress Signals . | . . . . . . . . . . Times Spotted 228 | . 23 4 57 2 . 1 38 83 20 Peak Tracking Total 8 | . 4 2 5 2 . 1 8 6 5 Tactical Retreats 14 | . 1 . 3 . . . 1 7 2 ECM-based Alert Blocks 5 | . . . . . . . . 5 . Traps | -11 -10 -10 -9 -9 -9 -8 -8 -7 -7 ------- Run | Yrd Mat Min Mat Min Exi Min Mat Fac Sto Traps Triggered 12 | . 3 . 3 . . . 2 4 . Indirectly . | . . . . . . . . . . Trap Hack Attempts . | . . . . . . . . . . Triggered . | . . . . . . . . . . Disarmed 10 | . . . 4 . . . 6 . . Reprogrammed . | . . . . . . . . . . Reused . | . . . . . . . . . . Traps Extracted . | . . . . . . . . . . Installed . | . . . . . . . . . . Triggered . | . . . . . . . . . . Machines | -11 -10 -10 -9 -9 -9 -8 -8 -7 -7 ---------- Run | Yrd Mat Min Mat Min Exi Min Mat Fac Sto Machines Disabled 27 | . 2 1 4 . . 1 7 10 2 Max in Single Turn 4 | . 1 1 2 . . 1 2 4 1 Garrison Access 5 | . . . . . . . 1 3 1 Machines Repaired . | . . . . . . . . . . Machines Dismantled . | . . . . . . . . . . Machines Sabotaged . | . . . . . . . . . . Overloaded Fab Kills . | . . . . . . . . . . Hacking | -11 -10 -10 -9 -9 -9 -8 -8 -7 -7 --------- Run | Yrd Mat Min Mat Min Exi Min Mat Fac Sto Machines Accessed 67 | . 10 1 17 1 1 . 8 25 4 Terminals 39 | . 8 . 11 . . . 6 12 2 Fabricators 3 | . . . . . . . . 3 . Repair Stations 6 | . . . 2 . . . . 4 . Recycling Units 8 | . 2 . 2 . . . 1 2 1 Scanalyzers 3 | . . . 2 . . . . 1 . Garrison Access 5 | . . . . . . . 1 3 1 Total Hacks 218 | . 31 1 62 1 1 . 30 86 6 Successful 136 | . 16 1 40 1 1 . 18 55 4 Failed 81 | . 15 . 21 . . . 12 31 2 Catastrophic 3 | . . . 1 . . . . 2 . Database Lockouts 1 | . . . 1 . . . . . . Manual 138 | . 29 . 43 . 1 . 26 33 6 Terminals 144 | . 28 . 41 . . . 27 44 4 Fabricators 10 | . . . . . . . . 10 . Repair Stations 26 | . . . 4 . . . . 22 . Recycling Units 10 | . 3 . 2 . . . 1 3 1 Scanalyzers 18 | . . . 15 . . . . 3 . Garrison Access 7 | . . . . . . . 2 4 1 Terminal Hacks 48 | . 7 1 12 1 1 . 9 16 1 Record 1 | . . . . . . . . 1 . Part Schematic 1 | . . . 1 . . . . . . Robot Analysis 6 | . 4 . . . . . . 2 . Open Door 3 | . . 1 . 1 . . . . 1 Open DSF 3 | . . . . . . . . 3 . Branch Access Points 2 | . . . 1 . . . 1 . . Terminal Index 4 | . 1 . 1 . . . 1 1 . Fabricator Index 2 | . . . 1 . . . 1 . . Repair Station Index 1 | . . . . . . . . 1 . Garrison Index 1 | . . . . . . . . 1 . Alert Level 3 | . . . . . . . . 3 . Unreport Threat 2 | . . . . . . . . 2 . Locate Traps 4 | . . . 1 . . . 2 1 . Disarm Traps 3 | . . . 2 . . . 1 . . Hauler Manifests 2 | . 1 . 1 . . . . . . Registered Components 2 | . 1 . . . . . 1 . . Zone Layout 7 | . . . 4 . . . 2 1 . Proto ID Catalog 1 | . . . . . 1 . . . . Fabricator Hacks 6 | . . . . . . . . 6 . Load Schematic 3 | . . . . . . . . 3 . Build 3 | . . . . . . . . 3 . Repair Station Hacks 20 | . . . 4 . . . . 16 . Scan Component 10 | . . . 2 . . . . 8 . Repair 10 | . . . 2 . . . . 8 . Recycling Unit Hacks 10 | . 3 . 2 . . . 1 3 1 Report Inventory 8 | . 2 . 2 . . . 1 2 1 Retrieve Components 2 | . 1 . . . . . . 1 . Scanalyzer 13 | . . . 11 . . . . 2 . Insert Component 6 | . . . 5 . . . . 1 . Analyze 7 | . . . 6 . . . . 1 . Garrison Access Hacks 5 | . . . . . . . 1 3 1 Seal Access 5 | . . . . . . . 1 3 1 Unauthorized Hacks 34 | . 6 . 11 . . . 7 9 1 Terminals 34 | . 6 . 11 . . . 7 9 1 Botnet 32 | . 6 . 11 . . . 6 8 1 Operators 2 | . . . . . . . 1 1 . Fabricators . | . . . . . . . . . . Repair Stations . | . . . . . . . . . . Recycling Units . | . . . . . . . . . . Scanalyzers . | . . . . . . . . . . Garrison Access . | . . . . . . . . . . Data Cores Recovered 1 | . 1 . . . . . . . . Used . | . . . . . . . . . . Hacking Detections 49 | . 9 . 13 . . . 7 19 1 Full Trace Events 27 | . 8 . 9 . . . 3 7 . Feedback Events 5 | . 2 . 1 . . . . 2 . Corruption 4 | . 2 . 1 . . . . 1 . Hackware Fried 1 | . . . . . . . . 1 . Feedback Blocked . | . . . . . . . . . . Robot Schematics Acquired . | . . . . . . . . . . Robots Built . | . . . . . . . . . . Authchips . | . . . . . . . . . . Time . | . . . . . . . . . . Total Robot Build Rating . | . . . . . . . . . . Part Schematics Acquired 6 | . . . 6 . . . . . . Parts Built 4 | . . . . . . . . 4 . Authchips . | . . . . . . . . . . Time 254 | . . . . . . . . 254 . Total Part Build Rating 14 | . . . . . . . . 14 . Part Studies Acquired . | . . . . . . . . . . Parts Repaired 10 | . . . 2 . . . . 8 . Time 289 | . . . 58 . . . . 231 . Parts Recycled . | . . . . . . . . . . Recycled Matter . | . . . . . . . . . . Retrieved Matter . | . . . . . . . . . . Retrieved Components 5 | . 2 . . . . . . 3 . Parts Scanalyzed 6 | . . . 5 . . . . 1 . Part Schematics Acquired 5 | . . . 5 . . . . . . Parts Damaged . | . . . . . . . . . . Bothacking | -11 -10 -10 -9 -9 -9 -8 -8 -7 -7 ------------ Run | Yrd Mat Min Mat Min Exi Min Mat Fac Sto Used RIF Installer . | . . . . . . . . . . Robots Hacked . | . . . . . . . . . . Non-combat . | . . . . . . . . . . Combat . | . . . . . . . . . . Robot Hacks Applied . | . . . . . . . . . . Relay Couplers Released 3 | . . . . . . . 3 . . Machine Destruction 3 | . . . . . . . 3 . . Fabnet Peak Effective % . | . . . . . . . . . . Robots Rewired . | . . . . . . . . . . Allies Hacked . | . . . . . . . . . . Hacks Repelled . | . . . . . . . . . . Allies | -11 -10 -10 -9 -9 -9 -8 -8 -7 -7 -------- Run | Yrd Mat Min Mat Min Exi Min Mat Fac Sto Total Allies 2 | . . 2 . . . . . . . Largest Group 2 | . . 2 2 . . . . . . Highest-Rated Group 45 | . . 45 45 . . . . . . Highest-Rated Ally 31 | . . 31 31 . . . . . . Total Orders . | . . . . . . . . . . Ally Attacks 23 | . . . 23 . . . . . . Total Damage 335 | . . . 335 . . . . . . Kills 6 | . . . 6 . . . . . . Allies Corrupted . | . . . . . . . . . . Allies Melted . | . . . . . . . . . . Intel | -11 -10 -10 -9 -9 -9 -8 -8 -7 -7 ------- Run | Yrd Mat Min Mat Min Exi Min Mat Fac Sto Active Infowar (turns) 1609 | . . . . . . . . 1609 . ECM 1609 | . . . . . . . . 1609 . Robot Analysis Total 6 | . 4 . . . . . . 2 . Derelict Logs Recovered 2 | . . 2 . . . . . . . Drone Launches . | . . . . . . . . . . Drone Recoveries . | . . . . . . . . . . Exploration | -11 -10 -10 -9 -9 -9 -8 -8 -7 -7 ------------- Run | Yrd Mat Min Mat Min Exi Min Mat Fac Sto Turns Passed 17943 | 70 1544 787 2599 196 749 779 3203 6703 1313 Spaces Moved 7561 | 45 762 472 1293 114 469 464 1213 2439 290 Core 13 | 13 . . . . . . . . . Treads 7548 | 32 762 472 1293 114 469 464 1213 2439 290 Legs . | . . . . . . . . . . Wheels . | . . . . . . . . . . Hover . | . . . . . . . . . . Flight . | . . . . . . . . . . Fastest Speed 50 | 50 160 160 160 160 160 160 160 156 247 Average Speed 185 | 128 160 160 160 160 160 160 213 200 259 Slowest Speed 560 | 160 160 160 240 160 160 160 560 560 320 Overloaded Moves . | . . . . . . . . . . Propulsion Burnouts . | . . . . . . . . . . Robots Hopped . | . . . . . . . . . . Potential Cave-ins 17 | . . . . . . . . 12 5 Cave-ins Triggered 2 | . . . . . . . 1 . 1 Exploration Rate (%) 62 | 3 95 83 93 22 79 85 72 53 42 Regions Visited 9 Branch Regions 5 Pre-discovered Areas 2 | . . 1 . 1 . . . . . Known Exits Taken 3 | . . . 1 . . . 1 1 . Unknown Exits Taken 6 | 1 1 1 . 1 1 1 . . . Scrap Searched 1 | . . . . . . 1 . . . Spaces Dug 63 | . . . 1 . . . 15 35 12 Terrain Destroyed 458 | . 2 1 82 . . 1 151 208 13 Melee 62 | . . . 1 . . . 15 34 12 Projectile 33 | . 2 1 7 . . 1 3 18 1 AOE 363 | . . . 74 . . . 133 156 . Terrain Rammed . | . . . . . . . . . . Walls Destroyed . | . . . . . . . . . . Machines Disabled . | . . . . . . . . . . Actions | -11 -10 -10 -9 -9 -9 -8 -8 -7 -7 --------- Run | Yrd Mat Min Mat Min Exi Min Mat Fac Sto Total 10311 | 57 990 494 1597 118 468 483 1650 3756 698 Wait 1648 | . 129 13 134 . . 9 209 855 299 Move 7552 | 44 761 471 1292 113 468 463 1212 2438 290 Hop . | . . . . . . . . . . Pick Up 161 | 7 26 2 17 . . . 46 56 7 Fast Attach . | . . . . . . . . . . Attach 79 | 6 2 1 7 . . . 18 40 5 Detach 5 | . . . . . . . . 5 . Swap 111 | . 7 . 12 . . . 34 48 10 Drop 67 | . 12 1 10 . . . 21 22 1 Fire 493 | . 53 5 121 5 . 8 80 189 32 Melee 165 | . . . 1 . . . 26 86 52 Ram . | . . . . . . . . . . Kick . | . . . . . . . . . . Crush 29 | . . . 3 . . 3 4 17 2 Escape Stasis . | . . . . . . . . . . Rewire 1 | . . 1 . . . . . . . Trap . | . . . . . . . . . . Miscellaneous . | . . . . . . . . . . Route ------- -11/Scrapyard -10/Materials (discovered 4 exits: *Mat x3 / *Min) -10/Mines (discovered 2 exits: *Mat x2) -9/Materials (discovered 4 exits: *Mat x3 / *Min) -9/Mines -9/Exiles (discovered 2 exits: [*Min x2]) -8/Mines (discovered 2 exits: *Mat x2) -8/Materials (discovered 3 exits: *Fac x3) -7/Factory (discovered 3 exits: *Fac / *Sto / *Low) -7/Storage History --------- Turn | Location | Event 22 | -11/Scrapyard | Discovered new exit (range 16) 71 | -11/Scrapyard | Entered Materials 308 | -10/Materials | Build established: Mutant 460 | -10/Materials | Discovered new exit (range 13) 794 | -10/Materials | Discovered new exit (range 7) 1041 | -10/Materials | Discovered new exit (range 7) 1163 | -10/Materials | Discovered new exit (range 7) 1615 | -10/Materials | Entered Mines 1623 | -10/Mines | Met a Derelict shopkeep closing up shop 1671 | -10/Mines | Met a Derelict bent on vengeance 1673 | -10/Mines | Discovered new exit (range 7) 1726 | -10/Mines | Learned 2 Materials zone layouts 2163 | -10/Mines | Discovered new exit (range 10) 2402 | -10/Mines | Entered Materials 2402 | -9/Materials | Accompanied by 2 allies 2402 | -9/Materials | Evolved 2 slots: Utility x2 2407 | -9/Materials | Led the pair of lost Derelicts to an unsafe place 2820 | -9/Materials | Discovered new exit (range 4) 3125 | -9/Materials | Discovered new exit (range 6) 3452 | -9/Materials | Repaired Lgt. Armor Plating 3805 | -9/Materials | Identified exit to Mines 3872 | -9/Materials | Repaired Imp. Treads 4055 | -9/Materials | Discovered new exit (range 17) 4225 | -9/Materials | Central database locked down 4402 | -9/Materials | First assault squad dispatched 4645 | -9/Materials | Lost 3 parts (1n2w) 5001 | -9/Materials | Entered Mines 5041 | -9/Mines | Found the Drone Emporium 5075 | -9/Mines | Learned location of Storage (-7) 5135 | -9/Mines | Deemed a non-threat by the Exiles lab entrance 5136 | -9/Mines | Discovered new exit (range 5) 5197 | -9/Mines | Entered Exiles 5225 | -9/Exiles | Discovered new exit (range 14) 5271 | -9/Exiles | Met 8R-AWN 5298 | -9/Exiles | Met EX-HEX 5341 | -9/Exiles | Met EX-BIN 5364 | -9/Exiles | Aligned with FarCom system 5365 | -9/Exiles | Given EX-Vault access code 5402 | -9/Exiles | Opened EX-Vault 5444 | -9/Exiles | Warned to stay clear of 0b10 Research branches 5549 | -9/Exiles | Met EX-DEC 5579 | -9/Exiles | Visited The Gauntlet 5756 | -9/Exiles | Discovered new exit (range 10) 5946 | -9/Exiles | Entered Mines 6236 | -8/Mines | Discovered new exit (range 8) 6251 | -8/Mines | Core integrity fell below 50% 6416 | -8/Mines | Discovered new exit (range 5) 6725 | -8/Mines | Entered Materials 6725 | -8/Materials | Evolved 2 slots: Propulsion x1, Utility x1 7136 | -8/Materials | Build established: Hacker-Mutant 7684 | -8/Materials | Discovered new exit (range 11) 8128 | -8/Materials | Discovered new exit (range 16) 8875 | -8/Materials | Build established: Scavenger-Mutant 9024 | -8/Materials | Discovered new exit (range 15) 9029 | -8/Materials | Crushed by falling debris 9029 | -8/Materials | Core integrity fell below 50% 9029 | -8/Materials | System corruption reached 10% 9060 | -8/Materials | Lost 4 parts (2n2u) 9070 | -8/Materials | Destroyed 7 combat bots 9309 | -8/Materials | Build established: Hacker-Mutant 9816 | -8/Materials | Identified exit to Factory 9928 | -8/Materials | Entered Factory 9928 | -7/Factory | Evolved 2 slots: Propulsion x1, Utility x1 10086 | -7/Factory | Found Prototype Launcher 10178 | -7/Factory | Garrison activated, responded to threat 10250 | -7/Factory | Discovered new exit (range 15) 10363 | -7/Factory | Lost 3 parts (2u1w) 10573 | -7/Factory | Fabricated Hacking Suite (x1) 10776 | -7/Factory | Identified exit to Lower Caves 11002 | -7/Factory | Identified Rocket Array 11244 | -7/Factory | Lost 7 parts (1p4n1u1w) 11468 | -7/Factory | Fabricated Imp. Treads (x2) 11852 | -7/Factory | Hacking Suite fried by hacking feedback 11866 | -7/Factory | Repaired Med. Treads 12141 | -7/Factory | Watched by a mysterious "MATRIX" hacker 13689 | -7/Factory | Repaired Med. Treads 13715 | -7/Factory | Repaired Med. Treads 13737 | -7/Factory | Repaired Adv. Treads 13896 | -7/Factory | Discovered new exit (range 8) 13953 | -7/Factory | Identified exit to Factory 14029 | -7/Factory | Found Rocket Array 14410 | -7/Factory | Core integrity fell below 50% 14447 | -7/Factory | Lost 3 parts (2n1w) 14561 | -7/Factory | Repaired Med. Treads 14808 | -7/Factory | Repaired Med. Treads 14860 | -7/Factory | Repaired Gauss Cannon 14906 | -7/Factory | Repaired Adv. Assault Cannon 15128 | -7/Factory | First assault squad dispatched 15451 | -7/Factory | Fabricated Adv. Energy Well? 16544 | -7/Factory | Lost 7 parts (1p3n1u2w) 16587 | -7/Factory | Discovered new exit (range 11) 16627 | -7/Factory | Identified exit to Storage 16631 | -7/Factory | Entered Storage 16898 | -7/Storage | Core integrity fell below 20% 17031 | -7/Storage | First assault squad dispatched 17813 | -7/Storage | Crushed by falling debris 17944 | -7/Storage | Destroyed by G-47 Trooper with Particle Gun Last Messages --------------- 17862_ P-60 Hacker system corrupted by crushing effect. 17868_ Destroyed Gravmag System. 17868_ P-60 Hacker system corrupted by crushing effect. 17871_ P-60 Hacker knocked back. 17874_ 0GF:O#F FO D#D%KACKONRJX0ICH 17876_ P-60 Hacker knocked back. 17882_ Minigun destroyed. 17885_ Destroyed Imp. Heat Sink. 17885_ Destroyed Mic. Nuclear Core. 17885_ P-60 Hacker system corrupted by crushing effect. 17885_ P-60 Hacker destroyed. 17890_ System corrupted: IFF burst signal emitted. 17896_ Acquired 10 matter. 17918_ System corrupted: Matter fused (-8). 17933_ G-47 Trooper Aluminum Leg blasted off. 17933_ G-47 Trooper knocked back. 17939_ IQ8C:D8FMGS%R8